fUST/lending_fUST_20250608
["ID","MTS","AMOUNT","RATE_DAILY","PERIOD"]
[364978569,1749375041450,-255.24615271,0.00021643,2]
[364978570,1749375041461,-568.53,0.00021643,2]
[364978571,1749375041471,-500.79,0.00021643,2]
[364978572,1749375041480,-624.58,0.00021643,2]
[364978573,1749375041490,-534.31,0.00021643,2]
[364978574,1749375041499,-440.0,0.00021643,2]
[364978575,1749375041509,-440.0,0.00021643,2]
[364978576,1749375041518,-588.02,0.00021643,2]
[364978577,1749375041528,-1545.45,0.00021643,2]
[364978578,1749375041538,-1287.55,0.00021643,2]
[364978579,1749375041547,-440.0,0.00021643,2]
[364978580,1749375041558,-1072.69,0.00021643,2]
[364978581,1749375041568,-477.58,0.00021643,2]
[364978582,1749375041578,-1273.71,0.00021643,2]
[364978583,1749375041588,-440.0,0.00021643,2]
[364978584,1749375041598,-573.56,0.00021643,2]
[364978585,1749375041608,-1272.69,0.00021643,2]
[364978586,1749375041618,-690.29,0.00021643,2]
[364978587,1749375041628,-1746.71,0.00021643,2]
[364978588,1749375041638,-502.06786853,0.0002165,2]
[364978589,1749375041647,-5000.0,0.00021851,2]
[364978590,1749375041657,-430.0,0.00021851,2]
[364978591,1749375041669,-207.4,0.00021851,2]
[364978592,1749375041679,-500.0,0.00021917,2]
[364978593,1749375041689,-413.21277726,0.00021917,2]
[364978594,1749375041699,-603.47,0.00021917,2]
[364978595,1749375041709,-568.53,0.00021917,2]
[364978596,1749375041719,-500.79,0.00021917,2]
[364978597,1749375041729,-624.58,0.00021917,2]
[364978598,1749375041739,-534.31,0.00021917,2]
[364978599,1749375041749,-440.0,0.00021917,2]
[364978600,1749375041759,-440.0,0.00021917,2]
[364978601,1749375041769,-588.02,0.00021917,2]
[364978602,1749375041779,-1545.45,0.00021917,2]
[364978603,1749375041789,-1287.55,0.00021917,2]
[364978604,1749375041800,-440.0,0.00021917,2]
[364978605,1749375041810,-1072.69,0.00021917,2]
[364978606,1749375041819,-477.58,0.00021917,2]
[364978607,1749375041830,-1273.71,0.00021917,2]
[364978608,1749375041840,-440.0,0.00021917,2]
[364978609,1749375041851,-573.56,0.00021917,2]
[364978610,1749375041860,-1272.69,0.00021917,2]
[364978611,1749375041870,-690.29,0.00021917,2]
[364978612,1749375041880,-1746.71,0.00021917,2]
[364978613,1749375041890,-1200.0,0.00021979,2]
[364978614,1749375041904,-109462.26,0.00022,7]
[364978615,1749375041916,-155.0,0.00022,2]
[364978616,1749375041925,-172.0,0.00022,2]
[364978617,1749375041935,-80960.62933716,0.00022,2]
[364978618,1749375041947,-1000.0,0.00022029,2]
[364978619,1749375042062,-500.0,0.00022042,2]
[364978620,1749375042073,-501.54662461,0.00022071,2]
[364978621,1749375042083,-501.73158183,0.00022071,2]
[364978622,1749375042093,-1008.73643888,0.00022071,2]
[364978623,1749375042102,-502.14087963,0.00022071,2]
[364978624,1749375042112,-500.0,0.00022071,2]
[364978625,1749375042122,-505.58408614,0.00022073,2]
[364978626,1749375042132,-501.54891852,0.00022142,2]
[364978627,1749375042141,-502.01125953,0.00022142,2]
[364978628,1749375042151,-501.50791894,0.00022142,2]
[364978629,1749375042160,-1000.0,0.00022142,2]
[364978630,1749375042170,-1200.0,0.00022142,2]
[364978631,1749375042180,-1000.0,0.00022142,2]
[364978632,1749375042189,-1000.0,0.00022142,2]
[364978633,1749375042199,-1000.0,0.00022142,2]
[364978634,1749375042208,-1000.0,0.00022142,2]
[364978635,1749375042218,-501.34608433,0.00022142,2]
[364978636,1749375042228,-153.0,0.00022164,2]
[364978637,1749375042237,-345.3900831,0.00022164,2]
[364978638,1749375042247,-153.0,0.00022164,2]
[364978639,1749375042256,-603.47,0.00022191,4]
[364978640,1749375042266,-568.53,0.00022191,4]
[364978641,1749375042275,-500.79,0.00022191,4]
[364978642,1749375042285,-624.58,0.00022191,4]
[364978643,1749375042294,-534.31,0.00022191,4]
[364978644,1749375042304,-350.42303008,0.00022191,4]
[364978645,1749375042313,-440.0,0.00022191,4]
[364978646,1749375042323,-588.02,0.00022191,4]
[364978647,1749375042332,-1545.45,0.00022191,4]
[364978648,1749375042342,-1287.55,0.00022191,4]
[364978649,1749375042351,-440.0,0.00022191,4]
[364978650,1749375042361,-1072.69,0.00022191,4]
[364978651,1749375042372,-477.58,0.00022191,4]
[364978652,1749375042381,-1273.71,0.00022191,4]
[364978653,1749375042392,-440.0,0.00022191,4]
[364978654,1749375042402,-573.56,0.00022191,4]
[364978655,1749375042412,-1272.69,0.00022191,4]
[364978656,1749375042421,-690.29,0.00022191,4]
[364978657,1749375042431,-1746.71,0.00022191,4]
[364978658,1749375042440,-5000.0,0.00022399,2]
[364978659,1749375042450,-4973.61,0.00022456,2]
[364978660,1749375042459,-500.0,0.00022465,2]
[364978661,1749375042470,-603.47,0.00022465,4]
[364978662,1749375042480,-568.53,0.00022465,4]
[364978663,1749375042490,-500.79,0.00022465,4]
[364978664,1749375042499,-624.58,0.00022465,4]
[364978665,1749375042509,-534.31,0.00022465,4]
[364978666,1749375042519,-440.0,0.00022465,4]
[364978667,1749375042529,-588.02,0.00022465,4]
[364978668,1749375042538,-1545.45,0.00022465,4]
[364978669,1749375042548,-1287.55,0.00022465,4]
[364978670,1749375042558,-440.0,0.00022465,4]
[364978671,1749375042568,-1072.69,0.00022465,4]
[364978672,1749375042578,-477.58,0.00022465,4]
[364978673,1749375042588,-1273.71,0.00022465,4]
[364978674,1749375042598,-440.0,0.00022465,4]
[364978675,1749375042608,-573.56,0.00022465,4]
[364978676,1749375042618,-1272.69,0.00022465,4]
[364978677,1749375042627,-690.29,0.00022465,4]
[364978678,1749375042637,-1746.71,0.00022465,4]
[364978679,1749375042647,-504.04897911,0.00022577,2]
[364978680,1749375042657,-1000.0,0.0002259,2]
[364978681,1749375042669,-1222.59,0.000226,7]
[364978683,1749375042679,-5000.0,0.00022603,2]
[364978685,1749375042689,-1500.0,0.0002269,2]
[364978686,1749375042699,-1800.0,0.0002269,2]
[364978687,1749375042709,-507.47350341,0.0002269,2]
[364978688,1749375042718,-1500.0,0.0002269,2]
[364978690,1749375042728,-1500.0,0.0002269,2]
[364978691,1749375042738,-1500.0,0.0002269,2]
[364978692,1749375042747,-800.0,0.00022718,2]
[364978693,1749375042757,-2331.3461548,0.0002273,3]
[364978694,1749375042766,-12500.0,0.00022735,3]
[364978695,1749375042776,-603.47,0.00022739,4]
[364978696,1749375042786,-568.53,0.00022739,4]
[364978697,1749375042796,-500.79,0.00022739,4]
[364978698,1749375042806,-624.58,0.00022739,4]
[364978699,1749375042816,-534.31,0.00022739,4]
[364978700,1749375042826,-158.35340077,0.00022739,4]
[364978701,1749375042836,-588.02,0.00022739,4]
[364978702,1749375042846,-1545.45,0.00022739,4]
[364978703,1749375042856,-1287.55,0.00022739,4]
[364978704,1749375042866,-440.0,0.00022739,4]
[364978705,1749375042875,-1072.69,0.00022739,4]
[364978706,1749375042885,-477.58,0.00022739,4]
[364978708,1749375042898,-1273.71,0.00022739,4]
[364978709,1749375042908,-440.0,0.00022739,4]
[364978710,1749375042920,-573.56,0.00022739,4]
[364978711,1749375042930,-1272.69,0.00022739,4]
[364978712,1749375042940,-690.29,0.00022739,4]
[364978713,1749375042950,-1746.71,0.00022739,4]
[364978715,1749375042960,-160.0,0.00022807,4]
[364978717,1749375042970,-800.0,0.00022927,2]
[364978718,1749375042979,-500.0,0.00022933,2]
[364978719,1749375042989,-5000.0,0.00022947,2]
[364978721,1749375042998,-158.6873432,0.00022986,2]
[364978723,1749375043008,-413.4953297,0.00022986,2]
[364978725,1749375043018,-498.9610189,0.00022986,2]
[364978726,1749375043027,-573.126752,0.00022986,2]
[364978727,1749375043037,-573.126752,0.00022986,2]
[364978728,1749375043047,-153.0,0.00022986,2]
[364978729,1749375043057,-2142.65736396,0.00023,30]
[364978731,1749375043066,-500.0,0.00023013,2]
[364978732,1749375043076,-603.47,0.00023013,4]
[364978734,1749375043086,-568.53,0.00023013,4]
[364978736,1749375043096,-500.79,0.00023013,4]
[364978737,1749375043106,-624.58,0.00023013,4]
[364978738,1749375043115,-534.31,0.00023013,4]
[364978739,1749375043125,-588.02,0.00023013,4]
[364978740,1749375043135,-1545.45,0.00023013,4]
[364978741,1749375043144,-1287.55,0.00023013,4]
[364978742,1749375043154,-440.0,0.00023013,4]
[364978743,1749375043165,-1072.69,0.00023013,4]
[364978744,1749375043175,-477.58,0.00023013,4]
[364978745,1749375043184,-1273.71,0.00023013,4]
[364978747,1749375043194,-440.0,0.00023013,4]
[364978748,1749375043204,-573.56,0.00023013,4]
[364978749,1749375043214,-1272.69,0.00023013,4]
[364978751,1749375043224,-690.29,0.00023013,4]
[364978752,1749375043233,-1746.71,0.00023013,4]
[364978753,1749375043243,-500.0,0.0002303,2]
[364978754,1749375043253,-1200.0,0.00023075,2]
[364978755,1749375043262,-193.95985384,0.00023115,2]
[364978756,1749375043272,-440.0,0.0002313,2]
[364978757,1749375043282,-1152.0,0.0002313,2]
[364978758,1749375043292,-1508.34367556,0.00023138,2]
[364978760,1749375043301,-215.0738,0.0002322,2]
[364978762,1749375043311,-2000.0,0.00023238,2]
[364978764,1749375043320,-2400.0,0.00023238,2]
[364978766,1749375043329,-542.50611979,0.00023238,2]
[364978768,1749375043339,-1003.42646563,0.00023238,2]
[364978770,1749375043348,-1503.96413543,0.00023238,2]
[364978772,1749375043358,-500.82272851,0.00023259,2]
[364978774,1749375043368,-603.47,0.00023287,4]
[364978776,1749375043378,-568.53,0.00023287,4]
[364978778,1749375043387,-500.79,0.00023287,4]
[364978781,1749375043397,-624.58,0.00023287,4]
[364978783,1749375043406,-534.31,0.00023287,4]
[364978785,1749375043418,-588.02,0.00023287,4]
[364978787,1749375043428,-1545.45,0.00023287,4]
[364978789,1749375043437,-1287.55,0.00023287,4]
[364978791,1749375043447,-440.0,0.00023287,4]
[364978793,1749375043456,-1072.69,0.00023287,4]
[364978795,1749375043466,-159.011133,0.00023287,3]
[364978797,1749375043475,-477.58,0.00023287,4]
[364978799,1749375043485,-1273.71,0.00023287,4]
[364978801,1749375043495,-440.0,0.00023287,4]
[364978803,1749375043505,-573.56,0.00023287,4]
[364978805,1749375043514,-1272.69,0.00023287,4]
[364978807,1749375043524,-690.29,0.00023287,4]
[364978809,1749375043533,-1746.71,0.00023287,4]
[364978811,1749375043543,-663.44,0.000233,7]
[364978813,1749375043552,-872.542328,0.00023304,3]
[364978815,1749375043562,-151.71151387,0.00023369,2]
[364978817,1749375043571,-6217.01,0.00023391,2]
[364978819,1749375043581,-500.0,0.00023392,2]
[364978821,1749375043590,-1000.0,0.00023404,5]
[364978823,1749375043600,-500.0,0.00023449,2]
[364978825,1749375043609,-2200.0,0.00023459,2]
[364978827,1749375043619,-5000.0,0.00023495,2]
[364978830,1749375043629,-2460.56264745,0.000235,2]
[364978832,1749375043639,-100088.3717666,0.000235,2]
[364978835,1749375043649,-228.6248944,0.000235,2]
[364978837,1749375043658,-159.87566464,0.00023534,2]
[364978839,1749375043669,-505.29982678,0.00023561,2]
[364978841,1749375043679,-603.47,0.00023561,4]
[364978843,1749375043688,-568.53,0.00023561,4]
[364978845,1749375043698,-500.79,0.00023561,4]
[364978847,1749375043708,-624.58,0.00023561,4]
[364978849,1749375043718,-534.31,0.00023561,4]
[364978851,1749375043728,-588.02,0.00023561,4]
[364978853,1749375043739,-1545.45,0.00023561,4]
[364978855,1749375043749,-1287.55,0.00023561,4]
[364978857,1749375043760,-440.0,0.00023561,4]
[364978860,1749375043770,-1072.69,0.00023561,4]
[364978862,1749375043779,-477.58,0.00023561,4]
[364978864,1749375043789,-1273.71,0.00023561,4]
[364978866,1749375043798,-440.0,0.00023561,4]
[364978868,1749375043808,-573.56,0.00023561,4]
[364978870,1749375043818,-1272.69,0.00023561,4]
[364978872,1749375043827,-690.29,0.00023561,4]
[364978874,1749375043837,-1746.71,0.00023561,4]
[364978876,1749375043847,-109462.26,0.000236,7]
[364978878,1749375043857,-151.0,0.000236,7]
[364978880,1749375043866,-293.85068442,0.00023624,2]
[364978882,1749375043875,-1175.965573,0.00023626,2]
[364978884,1749375043885,-728.4905794,0.00023644,2]
[364978886,1749375043897,-364.8515477,0.00023644,2]
[364978888,1749375043907,-150.0,0.00023673,2]
[364978890,1749375043919,-218767.16358039,0.000237,2]
[364978893,1749375043937,-3635.44835794,0.000237,2]
[364978896,1749375043954,-478.31441476,0.000237,2]
[364978898,1749375043965,-1233.49355222,0.000237,2]
[364978900,1749375043978,-543.73900073,0.000237,2]
[364978920,1749375044155,-500.0,0.00016999,2]
[364978922,1749375044165,-500.0,0.00016999,2]
[364978924,1749375044174,-500.0,0.00016999,2]
[364978927,1749375044184,-500.0,0.00016999,2]
[364978929,1749375044193,-500.0,0.00016999,2]
[364978931,1749375044202,-500.0,0.00016999,2]
[364978933,1749375044212,-500.0,0.00016999,2]
[364978935,1749375044221,-500.0,0.00016999,2]
[364978937,1749375044230,-500.0,0.00016999,2]
[364978939,1749375044239,-500.0,0.00016999,2]
[364978941,1749375044249,-11851.0313453,0.00022726,3]
[364978945,1749375044277,-431.45339164,0.00016999,2]
[364978947,1749375044286,-500.0,0.00016999,2]
[364978949,1749375044296,-648.9686547,0.00022726,3]
[364978951,1749375044305,-1864.62012564,0.000237,2]
[364979004,1749375044786,-307.03137058,0.00016999,2]
[364979006,1749375044795,-500.0,0.00016999,2]
[364979008,1749375044805,-1.94688237,0.00016999,2]
[364979274,1749375046987,-263.345,0.00016829,2]
[364979501,1749375181626,1500.0,0.00025479,120]
[364979505,1749375794212,2414.270382,0.00016,2]
[364979506,1749375796309,292.371237,0.00013699,2]
[364979507,1749375941476,9000.0,0.00025,120]
[364979509,1749376099873,151.01416247,0.00016,2]
[364979544,1749376232538,-794.0362807,0.00016167,2]
[364979546,1749376232548,-587.982787,0.00016387,2]
[364979548,1749376232558,-101.47133513,0.00016561,2]
[364979589,1749376238485,-93.28354232,0.00016561,2]
[364979591,1749376238495,-201.04381416,0.00016561,2]
[364979593,1749376238506,-160.0,0.00016827,2]
[364979595,1749376238515,-300.0,0.00016999,2]
[364979597,1749376238526,-300.0,0.00016999,2]
[364979599,1749376238536,-15787.34134653,0.00017,2]
[364979601,1749376238546,-245.86546515,0.00017095,2]
[364979603,1749376238555,-420.70820826,0.00017095,2]
[364979605,1749376238565,-10000.0,0.00017096,2]
[364979607,1749376238575,-257.53010599,0.00017387,2]
[364979609,1749376238584,-4067.06238566,0.00017477,2]
[364979611,1749376238593,-500.0,0.00017487,2]
[364979613,1749376238602,-500.0,0.00017487,2]
[364979615,1749376238611,-500.0,0.00017487,2]
[364979617,1749376238621,-500.0,0.00017487,2]
[364979619,1749376238631,-500.0,0.00017487,2]
[364979621,1749376238640,-500.0,0.00017487,2]
[364979623,1749376238650,-500.0,0.00017487,2]
[364979625,1749376238659,-500.0,0.00017487,2]
[364979627,1749376238669,-295.06057202,0.00017487,2]
[364979629,1749376238678,-500.0,0.00017487,2]
[364979632,1749376238688,-500.0,0.00017487,2]
[364979636,1749376238697,-500.0,0.00017487,2]
[364979639,1749376238707,-500.0,0.00017487,2]
[364979641,1749376238716,-500.0,0.00017487,2]
[364979643,1749376238726,-500.0,0.00017487,2]
[364979645,1749376238739,-500.0,0.00017487,2]
[364979647,1749376238749,-629.05418049,0.00017487,2]
[364979649,1749376238759,-500.0,0.00017487,2]
[364979652,1749376238769,-500.0,0.00017487,2]
[364979654,1749376238780,-500.0,0.00017487,2]
[364979656,1749376238790,-600.0,0.00017487,2]
[364979658,1749376238799,-500.0,0.00017487,2]
[364979660,1749376238811,-500.0,0.00017487,2]
[364979662,1749376238820,-500.0,0.00017487,2]
[364979664,1749376238830,-500.0,0.00017487,2]
[364979666,1749376238840,-500.0,0.00017487,2]
[364979668,1749376238849,-24900.0,0.00017488,2]
[364979670,1749376238859,-257.53010592,0.00018401,2]
[364979673,1749376238872,-420.0,0.00018567,2]
[364979674,1749376238882,-420.0,0.00018567,2]
[364979677,1749376238891,-1148.45,0.00018568,2]
[364979679,1749376238902,-3040.0,0.00018612,2]
[364979681,1749376238912,-38741.86847,0.00019177,2]
[364979683,1749376238922,-522.20250663,0.00019178,2]
[364979685,1749376238932,-440.0,0.00019178,2]
[364979687,1749376238941,-440.0,0.00019178,2]
[364979689,1749376238951,-350.42303008,0.00019178,2]
[364979691,1749376238961,-440.0,0.00019178,2]
[364979693,1749376238971,-440.0,0.00019178,2]
[364979695,1749376238981,-440.0,0.00019178,2]
[364979697,1749376238991,-517.82,0.00019178,2]
[364979699,1749376239001,-837.66,0.00019178,2]
[364979701,1749376239011,-440.0,0.00019178,2]
[364979703,1749376239020,-165.40279732,0.00019178,2]
[364979705,1749376239030,-836.59,0.00019178,2]
[364979707,1749376239040,-440.0,0.00019178,2]
[364979709,1749376239050,-440.0,0.00019178,2]
[364979711,1749376239060,-727.71,0.00019178,2]
[364979714,1749376239070,-983.78,0.00019178,2]
[364979730,1749376239080,-157.86789901,0.00019178,2]
[364979733,1749376239242,-481.27,0.00019178,2]
[364979735,1749376239252,-689.37,0.00019178,2]
[364979737,1749376239262,-440.0,0.00019178,2]
[364979739,1749376239272,-440.0,0.00019178,2]
[364979741,1749376239282,-1092.8,0.00019178,2]
[364979743,1749376239292,-1205.31,0.00019178,2]
[364979746,1749376239301,-440.0,0.00019178,2]
[364979748,1749376239312,-440.0,0.00019178,2]
[364979750,1749376239321,-440.0,0.00019178,2]
[364979752,1749376239331,-440.0,0.00019178,2]
[364979754,1749376239341,-360.84265535,0.00019178,2]
[364979756,1749376239350,-440.0,0.00019178,2]
[364979758,1749376239360,-501.36417442,0.00019178,2]
[364979760,1749376239370,-171.30798,0.00019178,2]
[364979762,1749376239379,-154.45857055,0.00019343,2]
[364979764,1749376239389,-257.53010592,0.00019415,2]
[364979766,1749376239400,-440.0,0.00019452,2]
[364979768,1749376239410,-440.0,0.00019452,2]
[364979770,1749376239420,-440.0,0.00019452,2]
[364979772,1749376239430,-517.82,0.00019452,2]
[364979774,1749376239441,-2296.9,0.00019452,2]
[364979776,1749376239450,-837.66,0.00019452,2]
[364979778,1749376239460,-440.0,0.00019452,2]
[364979781,1749376239470,-836.59,0.00019452,2]
[364979783,1749376239480,-440.0,0.00019452,2]
[364979785,1749376239490,-440.0,0.00019452,2]
[364979787,1749376239499,-727.71,0.00019452,2]
[364979789,1749376239509,-983.78,0.00019452,2]
[364979791,1749376239518,-151.0,0.00019452,2]
[364979793,1749376239528,-481.27,0.00019452,2]
[364979795,1749376239538,-689.37,0.00019452,2]
[364979797,1749376239548,-440.0,0.00019452,2]
[364979799,1749376239558,-1092.8,0.00019452,2]
[364979801,1749376239570,-1205.31,0.00019452,2]
[364979803,1749376239587,-440.0,0.00019452,2]
[364979805,1749376239596,-160.0,0.00019613,2]
[364979807,1749376239605,-160.0,0.00019613,2]
[364979809,1749376239615,-160.0,0.00019613,2]
[364979811,1749376239625,-229.60437222,0.00019613,2]
[364979813,1749376239634,-213.05153702,0.00019613,2]
[364979815,1749376239645,-11853.97844947,0.00019613,2]
[364979817,1749376239655,-160.0,0.00019613,2]
[364979819,1749376239664,-423.98131849,0.00019613,2]
[364979821,1749376239673,-842.5625,0.00019614,2]
[364979823,1749376239683,-834.50537533,0.00019614,2]
[364979825,1749376239693,-430.0,0.00019723,2]
[364979827,1749376239702,-440.0,0.00019723,2]
[364979829,1749376239712,-521.9620252,0.00019723,2]
[364979832,1749376239723,-430.0,0.00019723,2]
[364979834,1749376239734,-186.71549812,0.00019723,2]
[364979836,1749376239745,-430.0,0.00019723,2]
[364979838,1749376239754,-440.0,0.00019723,2]
[364979840,1749376239769,-440.0,0.00019723,2]
[364979842,1749376239778,-440.0,0.00019723,2]
[364979844,1749376239788,-230.07704568,0.00019723,2]
[364979846,1749376239798,-440.0,0.00019723,2]
[364979849,1749376239809,-440.0,0.00019723,2]
[364979851,1749376239818,-440.0,0.00019723,2]
[364979853,1749376239828,-440.0,0.00019723,2]
[364979856,1749376239839,-440.0,0.00019723,2]
[364979858,1749376239848,-440.0,0.00019724,2]
[364979860,1749376239857,-440.0,0.00019726,2]
[364979862,1749376239867,-440.0,0.00019726,2]
[364979864,1749376239876,-440.0,0.00019726,2]
[364979866,1749376239886,-517.82,0.00019726,2]
[364979868,1749376239897,-837.66,0.00019726,2]
[364979870,1749376239909,-440.0,0.00019726,2]
[364979872,1749376239919,-836.59,0.00019726,2]
[364979874,1749376239929,-440.0,0.00019726,2]
[364979877,1749376239938,-440.0,0.00019726,2]
[364979879,1749376239948,-727.71,0.00019726,2]
[364979881,1749376239958,-983.78,0.00019726,2]
[364979883,1749376239971,-481.27,0.00019726,2]
[364979885,1749376239981,-689.37,0.00019726,2]
[364979887,1749376239990,-440.0,0.00019726,2]
[364979889,1749376240000,-1092.8,0.00019726,2]
[364979891,1749376240010,-1205.31,0.00019726,2]
[364979893,1749376240020,-440.0,0.00019726,2]
[364979895,1749376240029,-1400.0,0.00019787,2]
[364979897,1749376240039,-440.0,0.00019997,2]
[364979899,1749376240050,-440.0,0.00019997,2]
[364979901,1749376240060,-312.65519947,0.00019997,2]
[364979904,1749376240071,-440.0,0.00019997,2]
[364979906,1749376240081,-440.0,0.00019997,2]
[364979908,1749376240090,-440.0,0.00019997,2]
[364979910,1749376240099,-440.0,0.00019998,2]
[364979912,1749376240109,-10162.18489265,0.0002,2]
[364979914,1749376240120,-440.0,0.0002,2]
[364979916,1749376240131,-440.0,0.0002,2]
[364979918,1749376240140,-208.21340077,0.0002,2]
[364979920,1749376240150,-517.82,0.0002,2]
[364979922,1749376240159,-837.66,0.0002,2]
[364979924,1749376240169,-440.0,0.0002,2]
[364979926,1749376240178,-836.59,0.0002,2]
[364979928,1749376240188,-440.0,0.0002,2]
[364979930,1749376240198,-440.0,0.0002,2]
[364979932,1749376240207,-727.71,0.0002,2]
[364979934,1749376240217,-983.78,0.0002,2]
[364979936,1749376240226,-481.27,0.0002,2]
[364979938,1749376240237,-689.37,0.0002,2]
[364979940,1749376240246,-440.0,0.0002,2]
[364979942,1749376240255,-1092.8,0.0002,2]
[364979945,1749376240265,-1205.31,0.0002,2]
[364979947,1749376240274,-440.0,0.0002,2]
[364979949,1749376240284,-180.355,0.00020156,2]
[364979951,1749376240294,-292.371237,0.00020187,2]
[364979953,1749376240304,-440.0,0.00020271,2]
[364979955,1749376240313,-440.0,0.00020271,2]
[364979957,1749376240323,-440.0,0.00020271,2]
[364979959,1749376240334,-440.0,0.00020271,2]
[364979961,1749376240344,-440.0,0.00020272,2]
[364979963,1749376240353,-440.0,0.00020273,2]
[364979965,1749376240363,-440.0,0.00020273,2]
[364979967,1749376240373,-517.82,0.00020273,2]
[364979969,1749376240382,-837.66,0.00020273,2]
[364979971,1749376240392,-440.0,0.00020273,2]
[364979973,1749376240402,-836.59,0.00020273,2]
[364979976,1749376240414,-440.0,0.00020273,2]
[364979978,1749376240425,-440.0,0.00020273,2]
[364979980,1749376240435,-727.71,0.00020273,2]
[364979982,1749376240445,-983.78,0.00020273,2]
[364979984,1749376240454,-481.27,0.00020273,2]
[364979985,1749376240464,-689.37,0.00020273,2]
[364979988,1749376240474,-440.0,0.00020273,2]
[364979990,1749376240484,-1092.8,0.00020273,2]
[364979992,1749376240495,-1205.31,0.00020273,2]
[364979994,1749376240504,-440.0,0.00020273,2]
[364979996,1749376240514,-587.0,0.00020279,2]
[364979998,1749376240523,-3445.35,0.00020336,2]
[364980000,1749376240533,-257.53010592,0.00020429,2]
[364980002,1749376240544,-440.0,0.00020545,2]
[364980004,1749376240554,-440.0,0.00020545,2]
[364980006,1749376240564,-440.0,0.00020545,2]
[364980008,1749376240574,-440.0,0.00020545,2]
[364980010,1749376240583,-440.0,0.00020546,2]
[364980012,1749376240594,-440.0,0.00020547,2]
[364980014,1749376240603,-440.0,0.00020547,2]
[364980016,1749376240613,-517.82,0.00020547,2]
[364980018,1749376240622,-837.66,0.00020547,2]
[364980020,1749376240631,-440.0,0.00020547,2]
[364980022,1749376240641,-836.59,0.00020547,2]
[364980024,1749376240650,-440.0,0.00020547,2]
[364980026,1749376240660,-440.0,0.00020547,2]
[364980028,1749376240669,-727.71,0.00020547,2]
[364980030,1749376240679,-983.78,0.00020547,2]
[364980032,1749376240688,-481.27,0.00020547,2]
[364980034,1749376240698,-689.37,0.00020547,2]
[364980036,1749376240708,-440.0,0.00020547,2]
[364980038,1749376240718,-1092.8,0.00020547,2]
[364980040,1749376240727,-1205.31,0.00020547,2]
[364980042,1749376240739,-440.0,0.00020547,2]
[364980044,1749376240748,-500.0,0.00020547,2]
[364980046,1749376240758,-440.0,0.00020819,2]
[364980048,1749376240767,-440.0,0.00020819,2]
[364980050,1749376240779,-440.0,0.00020819,2]
[364980052,1749376240789,-440.0,0.00020819,2]
[364980054,1749376240798,-440.0,0.00020821,2]
[364980057,1749376240809,-440.0,0.00020821,2]
[364980058,1749376240819,-517.82,0.00020821,2]
[364980059,1749376240829,-837.66,0.00020821,2]
[364980060,1749376240839,-440.0,0.00020821,2]
[364980061,1749376240848,-836.59,0.00020821,2]
[364980062,1749376240858,-440.0,0.00020821,2]
[364980063,1749376240867,-440.0,0.00020821,2]
[364980064,1749376240877,-727.71,0.00020821,2]
[364980065,1749376240887,-983.78,0.00020821,2]
[364980066,1749376240896,-481.27,0.00020821,2]
[364980067,1749376240906,-689.37,0.00020821,2]